fUSD/lending_fUSD_20260203
["ID","MTS","AMOUNT","RATE_DAILY","PERIOD"]
[404428634,1770133388114,-1120.8963868,7.699e-05,2]
[404428635,1770133388150,-1255.94618675,7.699e-05,2]
[404428636,1770133388188,-1255.94618675,7.699e-05,2]
[404428637,1770133388226,-1255.94618675,7.699e-05,2]
[404428638,1770133389467,-1255.94618675,7.699e-05,2]
[404428639,1770133389504,-1232.17143975,7.699e-05,2]
[404428640,1770133389571,-23.774747,7.699e-05,2]
[404428641,1770133389604,-1255.94618675,7.699e-05,2]
[404428642,1770133389637,-1184.62194575,7.699e-05,2]
[404428643,1770133390855,-71.324241,7.699e-05,2]
[404428644,1770133390891,-1255.94618675,7.699e-05,2]
[404428645,1770133390928,-1255.94618675,7.699e-05,2]
[404428646,1770133390969,-1255.94618675,7.699e-05,2]
[404428647,1770133391006,-1065.73821075,7.699e-05,2]
[404428648,1770133391228,-190.207976,7.699e-05,2]
[404428649,1770133391269,-1255.94618675,7.699e-05,2]
[404428650,1770133391308,-1255.94618675,7.699e-05,2]
[404428651,1770133391349,-1255.94618675,7.699e-05,2]
[404428652,1770133391390,-827.97074075,7.699e-05,2]
[404428653,1770133391444,-427.975446,7.699e-05,2]
[404428654,1770133391485,-1255.94618675,7.699e-05,2]
[404428655,1770133391527,-1255.94618674,7.699e-05,2]
[404428656,1770133391565,-1255.94618674,7.699e-05,2]
[404428657,1770133391604,-352.4358008,7.699e-05,2]
[404428658,1770133392522,-903.51038594,7.699e-05,2]
[404428659,1770133392557,-1255.94618674,7.699e-05,2]
[404428660,1770133392696,-1255.94618674,7.699e-05,2]
[404428661,1770133392730,-1232.17143978,7.699e-05,2]
[404428662,1770133392948,-23.77474696,7.699e-05,2]
[404428663,1770133392976,-1051.85,7.699e-05,2]
[404428664,1770133395599,2848.76050608,7.6e-05,2]
[404428665,1770133395628,5000.01,7.6e-05,2]
[404428666,1770133395657,5000.01,7.6e-05,2]
[404428667,1770133395686,5000.01,7.6e-05,2]
[404428668,1770133395719,1998866.27,7.6e-05,2]
[404428669,1770133408644,-7542.11393595,7.6e-05,2]
[404428670,1770133408795,-10000.01,7.6e-05,2]
[404428671,1770133409001,-10000.01,7.6e-05,2]
[404428672,1770133409190,-10000.01,7.6e-05,2]
[404428673,1770133409346,-10000.01,7.6e-05,2]
[404428674,1770133414111,-10000.01,7.6e-05,2]
[404428675,1770133414154,-10000.01,7.6e-05,2]
[404428676,1770133414300,-10000.01,7.6e-05,2]
[404428677,1770133414435,-10000.01,7.6e-05,2]
[404428678,1770133414559,-10000.01,7.6e-05,2]
[404428679,1770133417235,-10000.01,7.6e-05,2]
[404428680,1770133417767,-10000.01,7.6e-05,2]
[404428681,1770133417789,-10000.01,7.6e-05,2]
[404428682,1770133417845,-10000.01,7.6e-05,2]
[404428683,1770133417956,-10000.01,7.6e-05,2]
[404428684,1770133420510,-10000.01,7.6e-05,2]
[404428685,1770133420742,-10000.01,7.6e-05,2]
[404428686,1770133420885,-10000.01,7.6e-05,2]
[404428687,1770133421017,-10000.01,7.6e-05,2]
[404428688,1770133421230,-10000.01,7.6e-05,2]
[404428689,1770133426423,-10000.01,7.6e-05,2]
[404428690,1770133428375,-10000.01,7.6e-05,2]
[404428691,1770133428416,-10000.01,7.6e-05,2]
[404428692,1770133428583,-10000.01,7.6e-05,2]
[404428693,1770133428768,-10000.01,7.6e-05,2]
[404428694,1770133435470,-10000.01,7.6e-05,2]
[404428695,1770133435645,-10000.01,7.6e-05,2]
[404428696,1770133435766,-10000.01,7.6e-05,2]
[404428697,1770133435906,-10000.01,7.6e-05,2]
[404428698,1770133439079,-10000.01,7.6e-05,2]
[404428700,1770133540492,10000.01,7.402e-05,2]
[404428701,1770133540527,2882.17,7.402e-05,2]
[404428719,1770133715607,258.51,7.339e-05,2]
[404428720,1770133717336,-1200.0,7.598e-05,2]
[404428721,1770133735435,595.44907876,7.598e-05,2]
[404428722,1770133735489,591.08179842,7.598e-05,2]
[404428723,1770133737348,500.0,7.598e-05,2]
[404428724,1770133737409,500.0,7.598e-05,2]
[404428725,1770133737475,500.0,7.598e-05,2]
[404428726,1770133737550,500.0,7.598e-05,2]
[404428727,1770133737609,500.0,7.598e-05,2]
[404428728,1770133737666,500.0,7.598e-05,2]
[404428729,1770133737725,500.0,7.598e-05,2]
[404428730,1770133737794,313.47912282,7.598e-05,2]
[404428731,1770133737823,186.52087718,7.598e-05,2]
[404428732,1770133737886,500.0,7.598e-05,2]
[404428733,1770133737962,500.0,7.598e-05,2]
[404428734,1770133738022,500.0,7.598e-05,2]
[404428735,1770133738087,500.0,7.598e-05,2]
[404428736,1770133738166,500.0,7.598e-05,2]
[404428737,1770133738221,500.0,7.598e-05,2]
[404428738,1770133738292,500.0,7.598e-05,2]
[404428739,1770133738366,500.0,7.598e-05,2]
[404428740,1770133738421,500.0,7.598e-05,2]
[404428741,1770133738475,313.48912282,7.598e-05,2]
[404428742,1770133738500,186.51087718,7.598e-05,2]
[404428743,1770133738555,500.0,7.598e-05,2]
[404428744,1770133738602,500.0,7.598e-05,2]
[404428745,1770133738664,500.0,7.598e-05,2]
[404428746,1770133738716,500.0,7.598e-05,2]
[404428747,1770133738764,500.0,7.598e-05,2]
[404428748,1770133738818,500.0,7.598e-05,2]
[404428749,1770133738869,500.0,7.598e-05,2]
[404428750,1770133738916,500.0,7.598e-05,2]
[404428751,1770133738975,500.0,7.598e-05,2]
[404428752,1770133739033,313.49912282,7.598e-05,2]
[404428753,1770133739058,186.50087718,7.598e-05,2]
[404428754,1770133739108,500.0,7.598e-05,2]
[404428755,1770133739158,500.0,7.598e-05,2]
[404428756,1770133739213,500.0,7.598e-05,2]
[404428757,1770133739258,500.0,7.598e-05,2]
[404428758,1770133739313,500.0,7.598e-05,2]
[404428759,1770133739366,392.91500781,7.598e-05,2]
[404428760,1770133739412,500.0,7.598e-05,2]
[404428761,1770133739457,500.0,7.598e-05,2]
[404428762,1770133739502,500.0,7.598e-05,2]
[404428763,1770133739552,420.59411501,7.598e-05,2]
[404428764,1770133739578,79.40588499,7.598e-05,2]
[404428765,1770133739623,500.0,7.598e-05,2]
[404428766,1770133739676,500.0,7.598e-05,2]
[404428767,1770133739728,500.0,7.598e-05,2]
[404428768,1770133739774,500.0,7.598e-05,2]
[404428769,1770133739825,500.0,7.598e-05,2]
[404428770,1770133739870,500.0,7.598e-05,2]
[404428771,1770133739934,500.0,7.598e-05,2]
[404428772,1770133739985,500.0,7.598e-05,2]
[404428773,1770133740048,500.0,7.598e-05,2]
[404428774,1770133740091,420.60411501,7.598e-05,2]
[404428775,1770133740117,79.39588499,7.598e-05,2]
[404428776,1770133740677,500.0,7.598e-05,2]
[404428777,1770133740717,500.0,7.598e-05,2]
[404428778,1770133751101,-7117.84,7.599e-05,2]
[404428779,1770133751126,-10000.01,7.599e-05,2]
[404428780,1770133751254,-10000.01,7.599e-05,2]
[404428781,1770133753084,500.0,7.598e-05,2]
[404428782,1770133753129,500.0,7.598e-05,2]
[404428783,1770133753184,500.0,7.598e-05,2]
[404428784,1770133753237,500.0,7.598e-05,2]
[404428785,1770133753288,500.0,7.598e-05,2]
[404428786,1770133753330,500.0,7.598e-05,2]
[404428787,1770133753375,500.0,7.598e-05,2]
[404428788,1770133753422,420.61411501,7.598e-05,2]
[404428789,1770133753703,79.38588499,7.598e-05,2]
[404428790,1770133753744,500.0,7.598e-05,2]
[404428791,1770133753785,500.0,7.598e-05,2]
[404428792,1770133753832,500.0,7.598e-05,2]
[404428793,1770133753872,500.0,7.598e-05,2]
[404428794,1770133753916,500.0,7.598e-05,2]
[404428795,1770133753970,500.0,7.598e-05,2]
[404428796,1770133754016,500.0,7.598e-05,2]
[404428797,1770133754067,500.0,7.598e-05,2]
[404428798,1770133754108,500.0,7.598e-05,2]
[404428799,1770133754153,420.62411501,7.598e-05,2]
[404428800,1770133754180,79.37588499,7.598e-05,2]
[404428801,1770133754228,500.0,7.598e-05,2]
[404428802,1770133754281,500.0,7.598e-05,2]
[404428803,1770133754325,500.0,7.598e-05,2]
[404428804,1770133754388,500.0,7.598e-05,2]
[404428805,1770133754446,500.0,7.598e-05,2]
[404428806,1770133754549,-10000.01,7.599e-05,2]
[404428807,1770133754597,392.91500781,7.598e-05,2]
[404428808,1770133757022,-10000.01,7.599e-05,2]
[404428809,1770133757186,-10000.01,7.599e-05,2]
[404428810,1770133757327,-10000.01,7.599e-05,2]
[404428811,1770133801622,300.0,7.598e-05,2]
[404428812,1770133801932,1200.0,7.598e-05,2]
[404428817,1770133831876,-250.0,7.599e-05,2]
[404428819,1770133831936,-99518.9949744,7.599e-05,2]
[404428820,1770133831948,-15279.06300048,7.599e-05,2]
[404428821,1770133832105,-9182.1305331,7.599e-05,2]
[404428822,1770133832121,-11418.8904169,7.599e-05,2]
[404428823,1770133832132,-2970.30099316,7.599e-05,2]
[404428840,1770133837992,-9664.0,7.599e-05,2]
[404428841,1770133838004,-3284598.72008196,7.599e-05,2]
[404428842,1770133838014,-300.0,7.599e-05,2]
[404428843,1770133838023,-150.0,7.599e-05,2]
[404428844,1770133838034,-203.87618168,7.599e-05,2]
[404428845,1770133838044,-214.0,7.599e-05,2]
[404428846,1770133838053,-5761.311,7.6e-05,2]
[404428847,1770133838063,-1000.0,7.6e-05,2]
[404428848,1770133838073,-215.41950212,7.6e-05,2]
[404428849,1770133838083,-312.59,7.6e-05,2]
[404428850,1770133838092,-60910.51,7.671e-05,2]
[404428851,1770133838101,-627.41495303,7.698e-05,2]
[404428852,1770133838111,-1000.0,7.698e-05,2]
[404428853,1770133838123,-1483.9891503,7.699e-05,2]
[404428854,1770133838132,-1338.10693468,7.699e-05,2]
[404428855,1770133838142,-174.48261702,7.699e-05,2]
[404428856,1770133838152,-1489.12501748,7.699e-05,2]
[404428857,1770133838162,-151.74,7.823e-05,2]
[404428858,1770133838171,-23906.99,7.9e-05,2]
[404428859,1770133838181,-9999.99,7.9e-05,2]
[404428860,1770133838190,-150.99,7.9e-05,2]
[404428861,1770133838199,-9999.99,7.9e-05,2]
[404428862,1770133838210,-9999.99,7.9e-05,2]
[404428863,1770133838219,-4999.99,7.9e-05,2]
[404428864,1770133838228,-343.78,7.9e-05,2]
[404428865,1770133838238,-6100.0,7.9e-05,2]
[404428866,1770133838247,-150.01160098,7.937e-05,2]
[404428867,1770133838256,-9999.99,7.938e-05,2]
[404428868,1770133838265,-299.99,7.938e-05,2]
[404428869,1770133838274,-999.99,7.938e-05,2]
[404428870,1770133838284,-9999.99,7.938e-05,2]
[404428871,1770133838293,-150.99,7.938e-05,2]
[404428873,1770133838303,-12230.872634,7.945e-05,2]
[404428874,1770133838313,-1051.85,7.973e-05,2]
[404428875,1770133838322,-12200.0,8e-05,2]
[404428876,1770133838331,-420.0,8.084e-05,2]
[404428878,1770133838340,-431.0,8.09e-05,2]
[404428880,1770133838350,-12617.988487,8.178e-05,2]
[404428881,1770133838359,-500.0,8.219e-05,2]
[404428882,1770133838369,-500.0,8.219e-05,2]
[404428883,1770133838379,-500.0,8.219e-05,2]
[404428884,1770133838389,-500.0,8.219e-05,2]
[404428885,1770133838398,-500.0,8.219e-05,2]
[404428886,1770133838408,-500.0,8.219e-05,2]
[404428887,1770133838417,-462.93851322,8.219e-05,2]
[404428888,1770133838427,-500.0,8.219e-05,2]
[404428889,1770133838436,-500.0,8.219e-05,2]
[404428890,1770133838445,-500.0,8.219e-05,2]
[404428891,1770133838455,-500.0,8.219e-05,2]
[404428892,1770133838464,-500.0,8.219e-05,2]
[404428893,1770133838474,-1000.0,8.219e-05,2]
[404428894,1770133838486,-500.0,8.219e-05,2]
[404428895,1770133838494,-1051.85,8.247e-05,2]
[404428896,1770133838504,-250.0,8.358e-05,2]
[404428897,1770133838513,-420.0,8.358e-05,2]
[404428898,1770133838523,-1680.0,8.358e-05,2]
[404428899,1770133838533,-300.0,8.359e-05,2]
[404428900,1770133838543,-300.0,8.359e-05,2]
[404428901,1770133838554,-300.0,8.359e-05,2]
[404428902,1770133838563,-250.0,8.359e-05,2]
[404428903,1770133838573,-254.47974801,8.359e-05,2]
[404428904,1770133838583,-300.0,8.359e-05,2]
[404428905,1770133838592,-300.0,8.359e-05,2]
[404428906,1770133838602,-420.0,8.359e-05,2]
[404428907,1770133838611,-255.0,8.359e-05,2]
[404428908,1770133838622,-144951.54,8.37e-05,2]
[404428909,1770133838632,-1478.95182545,8.374e-05,2]
[404428910,1770133838641,-500.0,8.493e-05,2]
[404428911,1770133838651,-1051.85,8.521e-05,2]
[404428912,1770133838664,-33292.3487,8.744e-05,2]
[404428913,1770133838674,-500.0,8.767e-05,2]
[404428914,1770133838684,-1051.85,8.795e-05,2]
[404428915,1770133838693,-500.0,8.864e-05,2]
[404428916,1770133838703,-500.0,9.041e-05,2]
[404428917,1770133838712,-1051.85,9.069e-05,2]
[404428918,1770133838722,-166.51015303,9.133e-05,2]
[404428919,1770133838732,-500.0,9.133e-05,2]
[404428920,1770133838742,-562.28195765,9.133e-05,2]
[404428921,1770133838752,-500.0,9.133e-05,2]
[404428922,1770133838763,-150.01160098,9.185e-05,2]
[404428923,1770133839043,-587.0,9.193e-05,2]
[404428924,1770133839052,-2351.0,9.193e-05,2]
[404428925,1770133839062,-577.0,9.195e-05,2]
[404428926,1770133839072,-433.0,9.195e-05,2]
[404428927,1770133839081,-1000.0,9.247e-05,2]
[404428928,1770133839090,-500.0,9.315e-05,2]
[404428929,1770133839100,-1051.85,9.343e-05,2]
[404428930,1770133839109,-500.0,9.589e-05,2]
[404428931,1770133839124,-1051.85,9.617e-05,2]
[404428932,1770133839133,-500.0,9.681e-05,2]
[404428933,1770133839144,-1051.85,9.891e-05,2]
[404428934,1770133839154,-500.0,0.0001,2]
[404428935,1770133839164,-500.0,0.0001,2]
[404428936,1770133839174,-500.0,0.0001,2]
[404428937,1770133839184,-500.0,0.0001,2]
[404428938,1770133839193,-500.0,0.0001,2]
[404428939,1770133839203,-500.0,0.0001,2]
[404428940,1770133839212,-500.0,0.0001,2]
[404428941,1770133839222,-500.0,0.0001,2]
[404428942,1770133839231,-500.0,0.0001,2]
[404428943,1770133839241,-500.0,0.0001,2]
[404428944,1770133839251,-200.0,0.0001,2]
[404428945,1770133839260,-500.0,0.0001,2]
[404428946,1770133839270,-151.0,0.0001,2]
[404428947,1770133839280,-151.0,0.0001,2]
[404428948,1770133839290,-151.0,0.0001,2]
[404428949,1770133839299,-151.0,0.0001,2]
[404428950,1770133839310,-151.0,0.0001,2]
[404428951,1770133839319,-151.0,0.0001,2]
[404428952,1770133839329,-151.0,0.0001,2]
[404428953,1770133839339,-500.0,0.0001,2]
[404428954,1770133839349,-151.0,0.0001,2]
[404428955,1770133839358,-179.394524,0.0001,2]
[404428956,1770133839372,-151.0,0.0001,2]
[404428957,1770133839381,-500.0,0.0001,2]
[404428958,1770133839392,-500.0,0.0001,2]
[404428959,1770133839402,-151.0,0.0001,2]
[404428960,1770133839411,-500.0,0.0001,2]
[404428961,1770133839420,-151.0,0.0001,2]
[404428962,1770133839430,-500.0,0.0001,2]
[404428963,1770133839439,-151.0,0.0001,2]
[404428964,1770133839449,-151.0,0.0001,2]
[404428965,1770133839459,-151.0,0.0001,2]
[404428966,1770133839469,-151.0,0.0001,2]
[404428967,1770133839479,-151.0,0.0001,2]
[404428968,1770133839489,-500.0,0.0001,2]
[404428969,1770133839501,-151.0,0.0001,2]
[404428970,1770133839511,-500.0,0.0001,2]
[404428971,1770133839520,-151.0,0.0001,2]
[404428972,1770133839530,-151.0,0.0001,2]
[404428973,1770133839539,-500.0,0.0001,2]
[404428974,1770133839549,-151.0,0.0001,2]
[404428975,1770133839559,-500.0,0.0001,2]
[404428976,1770133839571,-500.0,0.0001,2]
[404428977,1770133839581,-500.0,0.0001,2]
[404428978,1770133839591,-500.0,0.0001,2]
[404428979,1770133839601,-151.0,0.0001,2]
[404428980,1770133839610,-151.0,0.0001,2]
[404428981,1770133839622,-151.0,0.0001,2]
[404428982,1770133839631,-151.0,0.0001,2]
[404428983,1770133839641,-151.0,0.0001,2]
[404428984,1770133839651,-151.0,0.0001,2]
[404428985,1770133839660,-151.0,0.0001,2]
[404428986,1770133839669,-151.0,0.0001,2]
[404428987,1770133839679,-151.0,0.0001,2]
[404428988,1770133839689,-151.0,0.0001,2]
[404428989,1770133839698,-151.0,0.0001,2]
[404428990,1770133839709,-200.0,0.0001,2]
[404428991,1770133839718,-164.01557148,0.0001,2]
[404428992,1770133839727,-164.01557148,0.0001,2]
[404428993,1770133839737,-749.3077445,0.0001,2]
[404428994,1770133839746,-749.3077445,0.0001,2]
[404428995,1770133839756,-250.0,0.00010041,2]
[404428996,1770133839765,-823.0,0.00010113,2]
[404428997,1770133839775,-3292.0,0.00010113,2]
[404428998,1770133839785,-736.0,0.00010114,2]
[404428999,1770133839795,-1051.85,0.00010165,2]
[404429000,1770133839805,-437.3,0.0001026,2]
[404429001,1770133839814,-1000.0,0.00010274,2]
[404429002,1770133839824,-150.01160098,0.00010434,2]
[404429003,1770133839834,-1051.85,0.00010439,2]
[404429004,1770133839843,-200.0,0.00010548,2]
[404429005,1770133839852,-500.0,0.00010548,2]
[404429006,1770133839862,-200.0,0.00010548,2]
[404429007,1770133839873,-1051.85,0.00010713,2]
[404429008,1770133839883,-18400.0,0.000109,3]
[404429009,1770133839893,-4690.22610269,0.000109,2]
[404429010,1770133839902,-4690.22610267,0.000109,2]
[404429011,1770133839912,-4690.22610267,0.000109,2]
[404429012,1770133839922,-150.0,0.00010959,2]
[404429013,1770133839932,-1051.85,0.00010987,2]
[404429014,1770133839941,-200.0,0.00011096,2]
[404429015,1770133839951,-507.65857495,0.00011096,2]
[404429016,1770133839960,-200.0,0.00011096,2]
[404429017,1770133839970,-7973.25276289,0.00011099,2]
[404429018,1770133839980,-7973.25276285,0.00011099,2]
[404429019,1770133839990,-7973.25276285,0.00011099,2]
[404429020,1770133840000,-7973.25276285,0.00011099,2]
[404429021,1770133840011,-37801.94347569,0.00011099,2]
[404429022,1770133840020,-37801.94347564,0.00011099,2]
[404429023,1770133840030,-37801.94347564,0.00011099,2]
[404429024,1770133840040,-37801.94347564,0.00011099,2]
[404429025,1770133840049,-1152.0,0.00011124,2]
[404429027,1770133840059,-4609.0,0.00011124,2]
[404429029,1770133840069,-1252.0,0.00011125,2]
[404429031,1770133840080,-150.0,0.00011233,2]
[404429032,1770133840089,-18103.07,0.00011233,2]
[404429034,1770133840099,-1051.85,0.00011261,2]
[404429037,1770133840110,-1000.0,0.00011301,2]
[404429038,1770133840121,-1051.85,0.00011535,2]
[404429039,1770133840130,-200.0,0.00011644,2]
[404429040,1770133840139,-200.0,0.00011644,2]
[404429041,1770133840148,-150.01160098,0.00011682,2]
[404429042,1770133840158,-322.6107,0.00011721,2]
[404429043,1770133840167,-209.40437684,0.00011721,2]
[404429044,1770133840176,-500.0,0.00011721,2]
[404429045,1770133840186,-500.0,0.00011721,2]
[404429046,1770133840195,-209.40437684,0.00011721,2]
[404429047,1770133840204,-500.0,0.00011721,2]
[404429048,1770133840214,-160.0,0.00011721,2]
[404429049,1770133840223,-500.0,0.00011721,2]
[404429050,1770133840232,-277.35679052,0.00011721,2]
[404429051,1770133840242,-500.0,0.00011721,2]
[404429052,1770133840252,-500.0,0.00011721,2]
[404429053,1770133840261,-500.0,0.00011721,2]
[404429054,1770133840271,-500.0,0.00011721,2]
[404429055,1770133840281,-500.0,0.00011721,2]
[404429056,1770133840291,-500.0,0.00011721,2]
[404429057,1770133840301,-500.0,0.00011721,2]
[404429058,1770133840310,-174.61919141,0.00011721,2]
[404429059,1770133840319,-721.12765535,0.00011721,2]
[404429060,1770133840328,-200.0,0.00011721,2]
[404429061,1770133840338,-500.0,0.00011721,2]
[404429062,1770133840347,-642.81998071,0.00011721,2]
[404429063,1770133840356,-578.20924308,0.00011721,2]
[404429064,1770133840366,-209.40437684,0.00011721,2]
[404429065,1770133840377,-217.15233878,0.00011776,2]
[404429066,1770133840387,-1051.85,0.00011808,2]
[404429067,1770133840396,-225.18697532,0.00011831,2]
[404429068,1770133840406,-233.51889341,0.00011886,2]
[404429069,1770133840415,-242.15909246,0.00011941,2]
[404429070,1770133840425,-4690.22610267,0.00011957,2]
[404429071,1770133840434,-251.11897888,0.00011996,2]
[404429072,1770133840443,-260.4103811,0.00012051,2]
[404429073,1770133840453,-4967.27629647,0.00012057,2]
[404429074,1770133840462,-13108.72073636,0.00012057,2]
[404429075,1770133840472,-23125.33720526,0.00012057,2]
[404429076,1770133840482,-37801.94347564,0.00012077,2]
[404429077,1770133840493,-1051.85,0.00012082,2]
[404429078,1770133840503,-270.0455652,0.00012106,2]
[404429079,1770133840512,-7973.25276285,0.00012122,2]
[404429080,1770133840522,-280.03725112,0.00012161,2]
[404429081,1770133840533,-290.39862941,0.00012216,2]
[404429082,1770133840542,-1613.0,0.00012237,2]
[404429083,1770133840551,-6453.0,0.00012237,2]
[404429084,1770133840561,-2129.0,0.00012242,2]
[404429085,1770133840571,-209.40437685,0.00012269,2]
[404429086,1770133840580,-209.40437685,0.00012269,2]
[404429088,1770133840590,-287.61899177,0.00012269,2]
[404429090,1770133840600,-181.08010149,0.00012269,2]
[404429092,1770133840611,-200.0,0.00012269,2]
[404429094,1770133840621,-301.1433787,0.00012271,2]
[404429096,1770133840630,-1000.0,0.00012329,2]
[404429098,1770133840639,-154.92044285,0.00012347,2]
[404429100,1770133840648,-159.59248424,0.00012347,2]
[404429102,1770133840658,-1051.85,0.00012356,2]
[404429104,1770133840667,-150.0,0.00012472,2]
[404429106,1770133840677,-1051.85,0.0001263,2]
[404429109,1770133840687,-298.26089446,0.00012817,2]
[404429110,1770133840696,-187.78006525,0.00012817,2]
[404429112,1770133840706,-200.0,0.00012817,2]
[404429115,1770133840715,-1000.0,0.00012848,2]
[404429116,1770133840725,-1051.85,0.00012904,2]
[404429118,1770133840734,-334.5472959,0.0001309,2]
[404429121,1770133840743,-160.3826751,0.0001309,2]
[404429123,1770133840752,-35766.0,0.00013129,2]
[404429126,1770133840761,-1051.85,0.00013178,2]
[404429127,1770133840771,-37801.94347564,0.00013222,2]
[404429130,1770133840780,-7973.25276285,0.00013278,2]
[404429131,1770133840791,-179.39452399,0.00013332,2]
[404429132,1770133840801,-309.29654756,0.00013365,2]
[404429133,1770133840810,-194.72792766,0.00013365,2]
[404429134,1770133840820,-200.0,0.00013365,2]
[404429135,1770133840829,-151.0,0.00013369,2]
[404429136,1770133840838,-151.0,0.00013369,2]
[404429137,1770133840847,-151.0,0.00013393,2]
[404429138,1770133840857,-4690.22610267,0.00013442,2]
[404429139,1770133840867,-1051.85,0.00013452,2]
[404429140,1770133840878,-2258.0,0.0001346,2]
[404429141,1770133840889,-9035.0,0.0001346,2]
[404429142,1770133840899,-1159.0,0.00013465,2]
[404429143,1770133840908,-151.0,0.00013488,2]
[404429144,1770133840918,-151.0,0.00013488,2]
[404429145,1770133840928,-151.0,0.00013513,2]
[404429146,1770133840937,-151.0,0.00013545,2]
[404429147,1770133840947,-151.0,0.00013545,2]
[404429148,1770133840955,-151.0,0.00013666,2]
[404429149,1770133840966,-199.97,0.00013666,2]
[404429150,1770133840975,-151.0,0.00013666,2]
[404429151,1770133840985,-500.0,0.00013698,2]
[404429152,1770133840994,-189.27951938,0.00013698,2]
[404429153,1770133841004,-500.0,0.00013698,2]
[404429154,1770133841014,-501.81901913,0.00013698,2]
[404429155,1770133841023,-500.0,0.00013698,2]
[404429156,1770133841032,-500.0,0.00013698,2]
[404429157,1770133841042,-500.0,0.00013698,2]
[404429158,1770133841051,-438.97921379,0.00013698,2]
[404429159,1770133841063,-199.38200897,0.00013698,2]
[404429160,1770133841073,-500.0,0.00013698,2]
[404429161,1770133841082,-500.0,0.00013698,2]
[404429162,1770133841092,-500.0,0.00013698,2]
[404429163,1770133841101,-500.0,0.00013698,2]
[404429164,1770133841110,-500.0,0.00013698,2]
[404429165,1770133841122,-500.0,0.00013698,2]
[404429166,1770133841131,-500.0,0.00013698,2]
[404429167,1770133841141,-500.0,0.00013698,2]
[404429168,1770133841150,-500.0,0.00013698,2]
[404429169,1770133841159,-500.0,0.00013698,2]
[404429170,1770133841168,-452.02134495,0.00013698,2]
[404429171,1770133841177,-500.0,0.00013698,2]
[404429172,1770133841187,-500.0,0.00013698,2]
[404429173,1770133841196,-168.77902155,0.00013698,2]
[404429174,1770133841205,-500.0,0.00013698,2]
[404429175,1770133841214,-500.0,0.00013698,2]
[404429176,1770133841223,-500.0,0.00013698,2]
[404429177,1770133841233,-500.0,0.00013698,2]
[404429178,1770133841242,-500.0,0.00013698,2]
[404429179,1770133841251,-500.0,0.00013698,2]
[404429180,1770133841261,-500.0,0.00013698,2]
[404429181,1770133841270,-500.0,0.00013698,2]
[404429182,1770133841279,-500.0,0.00013698,2]
[404429183,1770133841288,-500.0,0.00013698,2]
[404429184,1770133841298,-500.0,0.00013698,2]
[404429185,1770133841307,-500.0,0.00013698,2]
[404429186,1770133841316,-500.0,0.00013698,2]
[404429187,1770133841325,-599.11588893,0.00013698,2]
[404429188,1770133841334,-500.0,0.00013698,2]
[404429189,1770133841342,-500.0,0.00013698,2]
[404429190,1770133841352,-500.0,0.00013698,2]
[404429191,1770133841361,-500.0,0.00013698,2]
[404429192,1770133841371,-500.0,0.00013698,2]
[404429193,1770133841380,-500.0,0.00013698,2]
[404429194,1770133841389,-500.0,0.00013698,2]
[404429195,1770133841399,-500.0,0.00013698,2]
[404429196,1770133841407,-500.0,0.00013698,2]
[404429197,1770133841417,-500.0,0.00013698,2]
[404429198,1770133841426,-222.83714718,0.00013698,2]
[404429199,1770133841435,-500.0,0.00013698,2]
[404429200,1770133841444,-500.0,0.00013698,2]
[404429201,1770133841453,-500.0,0.00013698,2]
[404429202,1770133841462,-500.0,0.00013698,2]
[404429203,1770133841472,-500.0,0.00013698,2]
[404429204,1770133841481,-500.0,0.00013698,2]